fUSD/lending_fUSD_20260227
["ID","MTS","AMOUNT","RATE_DAILY","PERIOD"]
[406845951,1772225439408,-500.0,0.0001289,2]
[406845952,1772225439418,-500.0,0.0001289,2]
[406845953,1772225439427,-500.0,0.0001289,2]
[406845954,1772225439437,-500.0,0.0001289,2]
[406845955,1772225439446,-855.58910008,0.0001289,2]
[406845956,1772225439633,-500.0,0.0001289,2]
[406845957,1772225439642,-500.0,0.0001289,2]
[406845958,1772225439651,-500.0,0.0001289,2]
[406845959,1772225439660,-500.0,0.0001289,2]
[406845960,1772225439670,-500.0,0.0001289,2]
[406845961,1772225439679,-500.0,0.0001289,2]
[406845962,1772225439688,-500.0,0.0001289,2]
[406845963,1772225439696,-500.0,0.0001289,2]
[406845964,1772225439705,-500.0,0.0001289,2]
[406845965,1772225439717,-500.0,0.0001289,2]
[406845966,1772225439726,-500.0,0.0001289,2]
[406845967,1772225439736,-500.0,0.0001289,2]
[406845968,1772225439746,-500.0,0.0001289,2]
[406845969,1772225439755,-500.0,0.0001289,2]
[406845970,1772225439764,-500.0,0.0001289,2]
[406845971,1772225439774,-500.0,0.0001289,2]
[406845972,1772225439783,-500.0,0.0001289,2]
[406845973,1772225439798,-500.0,0.0001289,2]
[406845974,1772225439807,-500.0,0.0001289,2]
[406845975,1772225439817,-500.0,0.0001289,2]
[406845976,1772225439826,-563.07260655,0.0001289,2]
[406845977,1772225439835,-500.0,0.0001289,2]
[406845978,1772225439845,-500.0,0.0001289,2]
[406845979,1772225439854,-500.0,0.0001289,2]
[406845980,1772225439863,-500.0,0.0001289,2]
[406845981,1772225439872,-500.0,0.0001289,2]
[406845982,1772225439881,-500.0,0.0001289,2]
[406845983,1772225439890,-500.0,0.0001289,2]
[406845984,1772225439899,-500.0,0.0001289,2]
[406845985,1772225439909,-500.0,0.0001289,2]
[406845986,1772225439918,-500.0,0.0001289,2]
[406845987,1772225439928,-1788.50822211,0.0001328,2]
[406845988,1772225439937,-1252.0,0.00013315,2]
[406845989,1772225439946,-1493.53,0.00013363,2]
[406845990,1772225439955,-3240.0,0.00013425,2]
[406845991,1772225439964,-1000.0,0.00013598,2]
[406845992,1772225439974,-32885.2992,0.00013598,2]
[406845993,1772225439983,-500.0,0.00013698,2]
[406845994,1772225439992,-500.0,0.00013698,2]
[406845995,1772225440002,-500.0,0.00013698,2]
[406845996,1772225440011,-500.0,0.00013698,2]
[406845997,1772225440020,-500.0,0.00013698,2]
[406845998,1772225440030,-500.0,0.00013698,2]
[406845999,1772225440039,-442.42094836,0.00013698,2]
[406846000,1772225440049,-217.45849177,0.00013698,2]
[406846001,1772225440058,-500.0,0.00013698,2]
[406846002,1772225440067,-500.0,0.00013698,2]
[406846003,1772225440076,-500.0,0.00013698,2]
[406846004,1772225440085,-500.0,0.00013698,2]
[406846005,1772225440094,-500.0,0.00013698,2]
[406846006,1772225440105,-500.0,0.00013698,2]
[406846007,1772225440114,-500.0,0.00013698,2]
[406846008,1772225440123,-500.0,0.00013698,2]
[406846009,1772225440132,-500.0,0.00013698,2]
[406846010,1772225440142,-500.0,0.00013698,2]
[406846011,1772225440151,-522.57762627,0.00013698,2]
[406846012,1772225440160,-500.0,0.00013698,2]
[406846013,1772225440169,-500.0,0.00013698,2]
[406846014,1772225440178,-500.0,0.00013698,2]
[406846015,1772225440187,-500.0,0.00013698,2]
[406846016,1772225440198,-500.0,0.00013698,2]
[406846017,1772225440207,-500.0,0.00013698,2]
[406846018,1772225440217,-500.0,0.00013698,2]
[406846019,1772225440226,-500.0,0.00013698,2]
[406846020,1772225440235,-500.0,0.00013698,2]
[406846021,1772225440244,-500.0,0.00013698,2]
[406846022,1772225440254,-500.0,0.00013698,2]
[406846023,1772225440264,-500.0,0.00013698,2]
[406846024,1772225440273,-500.0,0.00013698,2]
[406846025,1772225440282,-500.0,0.00013698,2]
[406846026,1772225440292,-500.0,0.00013698,2]
[406846027,1772225440302,-500.0,0.00013698,2]
[406846028,1772225440311,-500.0,0.00013698,2]
[406846029,1772225440320,-500.0,0.00013698,2]
[406846030,1772225440329,-500.0,0.00013698,2]
[406846031,1772225440338,-500.0,0.00013698,2]
[406846032,1772225440348,-500.0,0.00013698,2]
[406846033,1772225440357,-500.0,0.00013698,2]
[406846034,1772225440367,-500.0,0.00013698,2]
[406846035,1772225440376,-500.0,0.00013698,2]
[406846036,1772225440386,-500.0,0.00013698,2]
[406846037,1772225440395,-500.0,0.00013698,2]
[406846038,1772225440404,-500.0,0.00013698,2]
[406846039,1772225440414,-500.0,0.00013698,2]
[406846040,1772225440423,-500.0,0.00013698,2]
[406846041,1772225440432,-500.0,0.00013698,2]
[406846042,1772225440441,-500.0,0.00013698,2]
[406846043,1772225440451,-500.0,0.00013698,2]
[406846044,1772225440460,-636.48559846,0.00013698,2]
[406846045,1772225440473,-500.0,0.00013698,2]
[406846046,1772225440482,-500.0,0.00013698,2]
[406846047,1772225440492,-500.0,0.00013698,2]
[406846048,1772225440502,-500.0,0.00013698,2]
[406846049,1772225440511,-500.0,0.00013698,2]
[406846050,1772225440520,-500.0,0.00013698,2]
[406846051,1772225440530,-180.14,0.00013698,2]
[406846052,1772225440539,-500.0,0.00013698,2]
[406846053,1772225440549,-500.0,0.00013698,2]
[406846054,1772225440559,-500.0,0.00013698,2]
[406846055,1772225440569,-500.0,0.00013698,2]
[406846056,1772225440578,-500.0,0.00013698,2]
[406846057,1772225440587,-500.0,0.00013698,2]
[406846058,1772225440596,-500.0,0.00013698,2]
[406846059,1772225440606,-500.0,0.00013698,2]
[406846060,1772225440615,-500.0,0.00013698,2]
[406846061,1772225440625,-500.0,0.00013698,2]
[406846062,1772225440634,-632.8120254,0.00013698,2]
[406846063,1772225440644,-500.0,0.00013698,2]
[406846064,1772225440654,-500.0,0.00013698,2]
[406846065,1772225440663,-500.0,0.00013698,2]
[406846066,1772225440672,-500.0,0.00013698,2]
[406846067,1772225440690,-500.0,0.00013698,2]
[406846068,1772225440701,-500.0,0.00013698,2]
[406846069,1772225440712,-500.0,0.00013698,2]
[406846070,1772225440722,-500.0,0.00013698,2]
[406846071,1772225440731,-500.0,0.00013698,2]
[406846072,1772225440740,-500.0,0.00013698,2]
[406846073,1772225440749,-500.0,0.00013698,2]
[406846074,1772225440759,-500.0,0.00013698,2]
[406846075,1772225440768,-500.0,0.00013698,2]
[406846076,1772225440778,-583.84924792,0.00013698,2]
[406846077,1772225440788,-500.0,0.00013698,2]
[406846078,1772225440798,-500.0,0.00013698,2]
[406846079,1772225440807,-500.0,0.00013698,2]
[406846080,1772225440816,-500.0,0.00013698,2]
[406846081,1772225440826,-500.0,0.00013698,2]
[406846083,1772225440836,-500.0,0.00013698,2]
[406846085,1772225440845,-500.0,0.00013698,2]
[406846087,1772225440855,-500.0,0.00013698,2]
[406846088,1772225440865,-500.0,0.00013698,2]
[406846089,1772225440874,-355.96963663,0.00013698,2]
[406846090,1772225440884,-500.0,0.00013698,2]
[406846091,1772225440893,-500.0,0.00013698,2]
[406846092,1772225440903,-502.14269457,0.00013698,2]
[406846093,1772225440912,-500.0,0.00013698,2]
[406846094,1772225440921,-500.0,0.00013698,2]
[406846095,1772225440931,-500.0,0.00013698,2]
[406846096,1772225440940,-500.0,0.00013698,2]
[406846097,1772225440949,-500.0,0.00013698,2]
[406846098,1772225440959,-500.0,0.00013698,2]
[406846099,1772225440968,-500.0,0.00013698,2]
[406846100,1772225440977,-172.10662643,0.00013699,2]
[406846101,1772225440987,-301.03849165,0.00013699,2]
[406846102,1772225440996,-295.80767039,0.00013699,2]
[406846103,1772225441005,-936.0,0.00013966,2]
[406846104,1772225441014,-500.0,0.00014146,2]
[406846105,1772225441024,-1419.31227132,0.00014875,2]
[406846106,1772225441033,-511.0,0.0001489,2]
[406846107,1772225441047,-10850.61464988,0.00016435,2]
[406846108,1772225441057,-1788.50822211,0.0001744,2]
[406846109,1772225441066,-500.0,0.00017808,2]
[406846110,1772225441076,-500.0,0.00017808,2]
[406846111,1772225441085,-500.0,0.00017808,2]
[406846112,1772225441095,-500.0,0.00017808,2]
[406846113,1772225441104,-500.0,0.00017808,2]
[406846114,1772225441114,-500.0,0.00017808,2]
[406846115,1772225441123,-272.70468216,0.00017808,2]
[406846116,1772225441132,-492.57649127,0.00017899,2]
[406846117,1772225441141,-253.46872602,0.0001795,2]
[406846118,1772225441150,-492.7820752,0.00017998,2]
[406846119,1772225441160,-200.0,0.00019082,2]
[406846120,1772225441168,-1419.31227132,0.00020629,2]
[406846121,1772225441179,-12895.0,0.00020669,2]
[406846122,1772225441188,-1788.50822211,0.00021601,2]
[406846123,1772225441198,-1000.0,0.00024658,2]
[406846124,1772225441208,-150.0,0.00024658,2]
[406846125,1772225441217,-188.41457428,0.00025298,13]
[406846126,1772225441226,-1788.50822211,0.00025761,2]
[406846127,1772225441239,-1419.31227132,0.00026383,2]
[406846128,1772225441248,-10388.06946955,0.00026804,2]
[406846129,1772225441258,-52754.8,0.00027281,2]
[406846130,1772225441267,-260.33,0.00027397,2]
[406846131,1772225441276,-338.10879444,0.00028103,2]
[406846132,1772225441285,-619.34600704,0.00029484,2]
[406846133,1772225441295,-1788.50822211,0.00029921,2]
[406846134,1772225441305,-1134.727032,0.00030137,30]
[406846135,1772225441314,-10388.06946955,0.00031226,2]
[406846136,1772225441324,-1419.31227132,0.00032138,2]
[406846137,1772225441334,-161.71,0.000329,14]
[406846138,1772225441343,-310.74,0.000329,2]
[406846139,1772225441353,-1788.50822211,0.00034081,2]
[406846140,1772225441364,-569.0,0.0003525,30]
[406846141,1772225441373,-911.0,0.0003525,30]
[406846142,1772225441383,-169.83,0.000353,14]
[406846143,1772225441393,-172.71,0.000353,14]
[406846144,1772225441402,-10388.06946955,0.00035647,2]
[406846145,1772225441411,-500.0,0.00036557,120]
[406846146,1772225441421,-136112.0,0.00036558,30]
[406846147,1772225441430,-151.0,0.0003776,14]
[406846148,1772225441443,-500.0,0.00037762,120]
[406846149,1772225441452,-136112.0,0.00037763,30]
[406846150,1772225441462,-1419.31227132,0.00037892,2]
[406846151,1772225441475,-836.823,0.00037978,50]
[406846152,1772225441486,-184.464,0.00037978,50]
[406846153,1772225441495,-1500.0,0.00038172,120]
[406846154,1772225441505,-1788.50822211,0.00038242,2]
[406846155,1772225441516,-166.15,0.00038325,30]
[406846156,1772225441525,-2000.0,0.000384,2]
[406846157,1772225441535,-136112.0,0.00038968,30]
[406846158,1772225441546,-155.0,0.0004,120]
[406846159,1772225441555,-10388.06946955,0.00040068,15]
[406846160,1772225441565,-5000.0,0.00040073,120]
[406846161,1772225441575,-136112.0,0.00040173,30]
[406846162,1772225441584,-306.22,0.00040618,14]
[406846163,1772225441594,-1618.55,0.000407,6]
[406846164,1772225441603,-1055.76410339,0.0004081,50]
[406846165,1772225441614,-1051.24982996,0.0004081,50]
[406846166,1772225441623,-1067.35953198,0.0004081,50]
[406846167,1772225441632,-1116.53857382,0.0004081,50]
[406846168,1772225441642,-1043.83645159,0.0004081,50]
[406846169,1772225441651,-1119.90928189,0.0004081,50]
[406846170,1772225441660,-1094.47689278,0.0004081,50]
[406846171,1772225441670,-1134.62155182,0.0004081,50]
[406846172,1772225441680,-161.71,0.000409,14]
[406846173,1772225441690,-310.74,0.000409,30]
[406846174,1772225441699,-136112.0,0.00041378,30]
[406846175,1772225441709,-300.0,0.00041715,2]
[406846176,1772225441719,-300.0,0.00041715,2]
[406846177,1772225441728,-373.0,0.00042,2]
[406846178,1772225441738,-169.83,0.00042,14]
[406846179,1772225441747,-172.71,0.00042,14]
[406846180,1772225441756,-2000.0,0.000421,2]
[406846181,1772225441766,-1788.50822211,0.00042402,15]
[406846182,1772225441775,-136112.0,0.00042584,30]
[406846183,1772225441785,-155.0,0.000426,120]
[406846184,1772225441794,-5800.0,0.00042721,14]
[406846185,1772225441804,-223.29007548,0.00042896,5]
[406846186,1772225441814,-1419.31227132,0.00043646,28]
[406846187,1772225441824,-136112.0,0.00043789,30]
[406846188,1772225441833,-20000.0,0.00043836,120]
[406846189,1772225441843,-500.0,0.00044109,120]
[406846190,1772225441853,-500.0,0.00044109,120]
[406846191,1772225441862,-500.0,0.00044109,120]
[406846192,1772225441872,-500.0,0.00044109,120]
[406846193,1772225441881,-500.0,0.00044109,120]
[406846194,1772225441891,-500.0,0.00044109,120]
[406846195,1772225441900,-500.0,0.00044109,120]
[406846196,1772225441910,-500.0,0.00044109,120]
[406846197,1772225441920,-296.88472817,0.00044109,120]
[406846198,1772225441929,-10388.06946955,0.00044489,15]
[406846199,1772225441938,-161.71,0.000447,14]
[406846200,1772225441947,-310.74,0.000447,30]
[406846201,1772225441957,-155.0,0.000453,120]
[406846202,1772225441966,-1989.28424835,0.00045313,17]
[406846203,1772225441975,-1025.83179219,0.00045353,50]
[406846204,1772225441985,-1123.06598914,0.00045353,50]
[406846205,1772225441995,-1081.42138146,0.00045353,50]
[406846206,1772225442004,-1062.11375165,0.00045353,50]
[406846207,1772225442013,-1147.9482344,0.00045353,50]
[406846208,1772225442022,-1143.37037574,0.00045353,50]
[406846209,1772225442032,-1110.42508596,0.00045353,50]
[406846210,1772225442042,-1068.76106097,0.00045353,50]
[406846211,1772225442052,-1051.42505679,0.00045353,50]
[406846212,1772225442061,-1121.56961495,0.00045353,50]
[406846213,1772225442071,-1078.01781953,0.00045353,50]
[406846214,1772225442080,-1147.63182797,0.00045353,50]
[406846215,1772225442090,-1063.24588082,0.00045353,50]
[406846216,1772225442099,-1083.53281686,0.00045353,50]
[406846217,1772225442108,-1007.49712846,0.00045353,50]
[406846218,1772225442118,-1078.04389652,0.00045353,50]
[406846219,1772225442127,-1162.2938137,0.00045356,2]
[406846220,1772225442136,-2000.0,0.000458,2]
[406846221,1772225442146,-1473.4196,0.0004585,2]
[406846222,1772225442155,-740.7,0.00046138,120]
[406846223,1772225442165,-172.71,0.000463,14]
[406846224,1772225442174,-439.3679,0.00046313,2]
[406846225,1772225442183,-150.0,0.00046313,2]
[406846226,1772225442192,-232.2,0.00046314,120]
[406846227,1772225442202,-131157.20007411,0.00046314,30]
[406846228,1772225442211,-1788.50822211,0.00046562,15]
[406846229,1772225442221,-271.51293922,0.00046662,2]
[406846230,1772225442230,-497.04,0.000468,120]
[406846231,1772225442239,-1473.4196,0.00046997,2]
[406846232,1772225442249,-511.0,0.00047445,31]
[406846233,1772225442258,-439.3679,0.00047471,2]
[406846234,1772225442268,-289.3678,0.00047471,2]
[406846235,1772225442277,-155.0,0.000479,120]
[406846236,1772225442287,-350.0,0.0004791,2]
[406846237,1772225442296,-177.0,0.00048,90]
[406846238,1772225442305,-152.8213546,0.00048103,120]
[406846239,1772225442315,-1473.4196,0.00048143,2]
[406846240,1772225442324,-271.51293922,0.00048302,2]
[406846241,1772225442334,-1049.19565921,0.0004851,50]
[406846242,1772225442343,-1105.29500705,0.0004851,50]
[406846243,1772225442353,-1141.07105586,0.0004851,50]
[406846244,1772225442362,-1062.11072064,0.0004851,50]
[406846245,1772225442375,-1128.77039383,0.0004851,50]
[406846246,1772225442385,-1488.86299101,0.0004851,50]
[406846247,1772225442396,-500.0,0.0004851,120]
[406846248,1772225442405,-500.0,0.0004851,120]
[406846249,1772225442414,-500.0,0.0004851,120]
[406846250,1772225442424,-500.0,0.0004851,120]
[406846251,1772225442433,-500.0,0.0004851,120]
[406846252,1772225442443,-504.0,0.0004851,120]
[406846253,1772225442453,-161.71,0.000486,14]
[406846254,1772225442464,-310.74,0.000486,30]
[406846255,1772225442477,-20000.0,0.00048767,120]
[406846256,1772225442487,-1000.0,0.000488,30]
[406846257,1772225442496,-733.851,0.000488,30]
[406846258,1772225442508,-10388.06946955,0.0004891,15]
[406846259,1772225442518,-27146.6200241,0.00048926,2]
[406846260,1772225442527,-350.1406,0.0004901,120]
[406846261,1772225442538,-350.1406,0.0004901,120]
[406846262,1772225442549,-350.1406,0.0004901,120]
[406846263,1772225442559,-350.14061,0.0004901,120]
[406846264,1772225442568,-350.1406,0.0004901,120]
[406846265,1772225442580,-4411.347402,0.00049235,120]
[406846266,1772225442590,-300.0,0.0004927,3]
[406846267,1772225442600,-420.67509562,0.0004935,120]
[406846268,1772225442609,-750.0,0.0004935,120]
[406846269,1772225442619,-700.0,0.00049396,2]
[406846270,1772225442629,-10000.0,0.00049399,2]
[406846271,1772225442639,-1419.31227132,0.000494,28]
[406846272,1772225442648,-200.0,0.00049456,31]
[406846273,1772225442658,-207.4,0.00049456,31]
[406846274,1772225442668,-292.16158886,0.00049456,31]
[406846275,1772225442677,-152.47032965,0.00049479,30]
[406846276,1772225442687,-150.0,0.00049479,30]
[406846277,1772225442697,-262.60482899,0.00049499,120]
[406846278,1772225442707,-157.13116755,0.00049499,120]
[406846279,1772225442717,-214.50715051,0.00049499,120]
[406846280,1772225442727,-150.0,0.00049499,120]
[406846281,1772225442736,-150.0,0.00049499,120]
[406846282,1772225442746,-200.0,0.00049499,120]
[406846283,1772225442756,-150.0,0.00049499,120]
[406846284,1772225442765,-150.0,0.00049499,120]
[406846285,1772225442774,-203.07873168,0.00049499,120]
[406846286,1772225442785,-150.0,0.00049499,120]
[406846287,1772225442796,-150.0,0.00049499,120]
[406846288,1772225442809,-150.0,0.00049499,120]
[406846289,1772225442818,-295.0,0.00049499,120]
[406846290,1772225442827,-688.0,0.00049499,2]
[406846291,1772225442836,-688.0,0.00049499,2]
[406846292,1772225442845,-688.0,0.00049499,2]
[406846293,1772225442854,-688.0,0.00049499,2]
[406846294,1772225442863,-688.0,0.00049499,2]
[406846295,1772225442872,-688.0,0.00049499,2]
[406846296,1772225442881,-688.0,0.00049499,2]
[406846297,1772225442891,-688.0,0.00049499,2]
[406846298,1772225442900,-688.0,0.00049499,2]
[406846299,1772225442910,-688.0,0.00049499,2]
[406846300,1772225442919,-688.0,0.00049499,2]
[406846301,1772225442928,-688.0,0.00049499,2]
[406846302,1772225442937,-688.0,0.00049499,2]
[406846303,1772225442947,-688.0,0.00049499,2]
[406846304,1772225442955,-688.0,0.00049499,2]
[406846305,1772225442965,-688.0,0.00049499,2]
[406846306,1772225442974,-688.0,0.00049499,2]
[406846307,1772225442983,-688.0,0.00049499,2]
[406846308,1772225442992,-688.0,0.00049499,2]
[406846309,1772225443001,-688.0,0.00049499,2]
[406846310,1772225443010,-688.0,0.00049499,2]
[406846311,1772225443019,-688.0,0.00049499,2]
[406846312,1772225443028,-688.0,0.00049499,2]
[406846313,1772225443037,-698.0,0.00049499,2]
[406846314,1772225443047,-194.04859862,0.00049499,30]
[406846315,1772225443055,-151.0,0.00049499,120]
[406846316,1772225443065,-151.0,0.00049499,120]
[406846317,1772225443074,-151.0,0.00049499,120]
[406846318,1772225443083,-500.0,0.00049499,120]
[406846319,1772225443092,-324.94565365,0.00049499,120]
[406846320,1772225443101,-156.587,0.00049499,120]
[406846322,1772225443110,-500.0,0.00049499,120]
[406846323,1772225443120,-500.0,0.00049499,120]
[406846324,1772225443128,-162.380719,0.00049499,120]
[406846325,1772225443138,-500.0,0.00049499,120]
[406846326,1772225443147,-500.0,0.00049499,120]
[406846328,1772225443156,-168.38880561,0.00049499,120]
[406846329,1772225443172,-500.0,0.00049499,120]
[406846331,1772225443183,-500.0,0.00049499,120]
[406846332,1772225443192,-500.0,0.00049499,120]
[406846333,1772225443202,-500.0,0.00049499,120]
[406846334,1772225443211,-500.0,0.00049499,120]
[406846335,1772225443220,-500.0,0.00049499,120]
[406846336,1772225443229,-500.0,0.00049499,120]
[406846337,1772225443238,-500.0,0.00049499,120]
[406846338,1772225443248,-250.0,0.00049499,120]
[406846339,1772225443258,-500.0,0.00049499,120]
[406846340,1772225443267,-500.0,0.00049499,120]
[406846341,1772225443277,-250.0,0.00049499,120]
[406846342,1772225443286,-500.0,0.00049499,120]
[406846343,1772225443297,-250.0,0.00049499,120]
[406846344,1772225443307,-500.0,0.00049499,120]
[406846345,1772225443316,-500.0,0.00049499,120]
[406846346,1772225443326,-250.0,0.00049499,120]
[406846347,1772225443335,-500.0,0.00049499,120]
[406846348,1772225443345,-518.5,0.00049499,120]
[406846349,1772225443354,-500.0,0.00049499,120]
[406846350,1772225443363,-250.0,0.00049499,120]
[406846351,1772225443372,-500.0,0.00049499,120]
[406846352,1772225443382,-537.6845,0.00049499,120]
[406846353,1772225443392,-500.0,0.00049499,120]
[406846354,1772225443401,-250.0,0.00049499,120]
[406846355,1772225443410,-500.0,0.00049499,120]
[406846356,1772225443420,-557.5788265,0.00049499,120]
[406846357,1772225443429,-250.0,0.00049499,120]
[406846358,1772225443439,-1234.0,0.00049499,120]
[406846359,1772225443449,-500.0,0.00049499,120]
[406846360,1772225443460,-578.20924308,0.00049499,120]
[406846361,1772225443475,-500.0,0.00049499,120]
[406846362,1772225443484,-250.0,0.00049499,120]
[406846363,1772225443493,-1234.0,0.00049499,120]
[406846364,1772225443504,-500.0,0.00049499,120]
[406846365,1772225443515,-599.60298507,0.00049499,120]
[406846366,1772225443525,-613.2620484,0.00049499,120]
[406846367,1772225443535,-500.0,0.00049499,120]
[406846368,1772225443547,-1234.0,0.00049499,120]
[406846369,1772225443557,-621.78829552,0.00049499,120]
[406846370,1772225443567,-500.0,0.00049499,120]
[406846371,1772225443576,-500.0,0.00049499,120]
[406846372,1772225443585,-1234.0,0.00049499,120]
[406846374,1772225443594,-151.0,0.00049499,120]
[406846376,1772225443605,-500.0,0.00049499,120]
[406846378,1772225443615,-644.79446246,0.00049499,120]
[406846379,1772225443624,-500.0,0.00049499,120]
[406846380,1772225443815,-1234.0,0.00049499,120]
[406846381,1772225443825,-151.0,0.00049499,120]
[406846382,1772225443835,-151.0,0.00049499,120]
[406846383,1772225443844,-500.0,0.00049499,120]
[406846384,1772225443854,-500.0,0.00049499,120]
[406846385,1772225443864,-916.0,0.00049499,120]
[406846386,1772225443878,-151.0,0.00049499,120]
[406846387,1772225443888,-151.0,0.00049499,120]
[406846388,1772225443897,-668.65185757,0.00049499,120]
[406846389,1772225443908,-500.0,0.00049499,120]
[406846390,1772225443918,-500.0,0.00049499,120]
[406846391,1772225443928,-151.0,0.00049499,120]
[406846392,1772225443938,-151.0,0.00049499,120]
[406846393,1772225443947,-693.3919763,0.00049499,120]
[406846394,1772225443957,-500.0,0.00049499,120]
[406846395,1772225443967,-151.0,0.00049499,120]
[406846396,1772225443976,-151.0,0.00049499,120]
[406846397,1772225443985,-719.04747942,0.00049499,120]
[406846398,1772225443994,-500.0,0.00049499,120]
[406846399,1772225444003,-151.0,0.00049499,120]
[406846400,1772225444012,-151.0,0.00049499,120]
[406846401,1772225444022,-745.65223616,0.00049499,120]
[406846402,1772225444031,-500.0,0.00049499,120]
[406846403,1772225444039,-151.0,0.00049499,120]
[406846404,1772225444049,-773.2413689,0.00049499,120]
[406846405,1772225444057,-500.0,0.00049499,120]
[406846406,1772225444066,-151.0,0.00049499,120]
[406846407,1772225444075,-151.0,0.00049499,120]
[406846408,1772225444085,-6888.0,0.00049499,120]
[406846409,1772225444095,-801.85129955,0.00049499,120]
[406846410,1772225444104,-500.0,0.00049499,120]
[406846411,1772225444113,-151.0,0.00049499,120]
[406846412,1772225444122,-151.0,0.00049499,120]
[406846413,1772225444131,-277.41053268,0.00049499,120]
[406846414,1772225444141,-831.51979763,0.00049499,120]
[406846415,1772225444150,-500.0,0.00049499,120]
[406846416,1772225444159,-151.0,0.00049499,120]
[406846417,1772225444169,-151.0,0.00049499,120]
[406846418,1772225444178,-500.0,0.00049499,120]
[406846419,1772225444188,-862.28603014,0.00049499,120]
[406846420,1772225444197,-500.0,0.00049499,120]
[406846421,1772225444207,-151.0,0.00049499,120]
[406846422,1772225444217,-894.19061326,0.00049499,120]
[406846423,1772225444226,-500.0,0.00049499,120]
[406846424,1772225444235,-500.0,0.00049499,120]
[406846425,1772225444244,-151.0,0.00049499,120]
[406846426,1772225444257,-927.27566595,0.00049499,120]
[406846427,1772225444266,-500.0,0.00049499,120]
[406846428,1772225444275,-961.58486559,0.00049499,120]
[406846429,1772225444284,-500.0,0.00049499,120]
[406846430,1772225444293,-151.0,0.00049499,120]
[406846431,1772225444305,-500.0,0.00049499,120]
[406846432,1772225444314,-151.0,0.00049499,120]
[406846433,1772225444323,-997.16350561,0.00049499,120]
[406846434,1772225444333,-151.0,0.00049499,120]
[406846435,1772225444342,-151.0,0.00049499,120]
[406846436,1772225444351,-500.0,0.00049499,120]
[406846437,1772225444361,-151.0,0.00049499,120]
[406846438,1772225444370,-500.0,0.00049499,120]
[406846439,1772225444380,-500.0,0.00049499,120]
[406846440,1772225444389,-151.0,0.00049499,120]
[406846441,1772225444399,-500.0,0.00049499,120]
[406846442,1772225444408,-500.0,0.00049499,120]
[406846443,1772225444418,-151.0,0.00049499,120]
[406846444,1772225444427,-500.0,0.00049499,120]
[406846445,1772225444436,-500.0,0.00049499,120]
[406846446,1772225444445,-151.0,0.00049499,120]
[406846447,1772225444454,-500.0,0.00049499,120]
[406846448,1772225444465,-500.0,0.00049499,120]
[406846449,1772225444478,-500.0,0.00049499,120]
[406846450,1772225444488,-958.96054146,0.000495,120]
[406846451,1772225444498,-3617037.50030727,0.000495,120]
[406846452,1772225444510,-2002796.38404051,0.000495,120]
[406846453,1772225444580,-1110.91299818,0.000495,120]
[406846454,1772225444595,-358.15101531,0.000495,120]
[406846455,1772225444608,-109878.12940442,0.000495,120]
[406846456,1772225444650,-619.34600704,0.000494,2]
[406846457,1772225444659,-500.0,0.00049499,120]
[406846458,1772225444668,-500.0,0.00049499,120]
[406846459,1772225444676,-500.0,0.00049499,120]